bitfinex/quotes_BTCUSD_20230901
["timestamp","ask_amount","ask_price","bid_price","bid_amount"]
[1693589405200,0.38708678,25422.0,25416.0,0.02920072]
[1693589405418,0.06,25428.0,25416.0,0.04920072]
[1693589405624,0.45122,25432.0,25421.0,0.02]
[1693589405625,0.38708678,25427.0,25421.0,0.02]
[1693589405825,0.38708678,25427.0,25422.0,0.02920072]
[1693589406039,0.38708678,25426.0,25422.0,0.02920072]
[1693589406252,0.07266,25430.0,25422.0,0.02920072]
[1693589406456,0.38708678,25429.0,25423.0,0.02]
[1693589406681,0.38708678,25430.0,25424.0,0.02920072]
[1693589406894,0.11334,25439.0,25426.0,0.02]
[1693589407104,0.24408336,25442.0,25426.0,0.02]
[1693589407105,0.38708678,25438.0,25429.0,0.02]
[1693589407304,0.38708678,25438.0,25430.0,0.02920072]
[1693589407517,0.23204,25441.0,25433.0,0.02]
[1693589407518,0.1652,25441.0,25433.0,0.02]
[1693589407723,0.38708678,25440.0,25434.0,0.04920072]
[1693589407942,0.38708678,25440.0,25434.0,0.02920072]
[1693589408766,0.0786,25446.0,25434.0,0.4162875]
[1693589408971,0.54192149,25445.0,25434.0,0.4162875]
[1693589409201,0.54192149,25445.0,25436.0,0.02]
[1693589409405,0.38708678,25445.0,25440.0,0.02]
[1693589409606,0.38708678,25445.0,25438.0,0.02]
[1693589409607,0.0886,25449.0,25441.0,0.04920072]
[1693589409813,0.46364678,25448.0,25441.0,0.04920072]
[1693589410018,0.46364678,25448.0,25441.0,0.02920072]
[1693589410019,0.38708678,25446.0,25441.0,0.02920072]
[1693589410223,0.07422437,25440.0,25436.0,0.157253]
[1693589410443,0.07422437,25440.0,25437.0,0.02]
[1693589410444,0.54192149,25439.0,25437.0,0.02]
[1693589410644,0.22905908,25440.0,25437.0,0.02]
[1693589410850,0.07422437,25440.0,25436.0,0.02]
[1693589411061,0.46131115,25440.0,25437.0,0.02]
[1693589411268,0.07422437,25440.0,25439.0,0.02]
[1693589411473,0.07422437,25440.0,25439.0,0.1119094]
[1693589411677,0.07422437,25440.0,25439.0,0.38270868]
[1693589412077,0.07422437,25440.0,25439.0,0.76979546]
[1693589412290,0.07422437,25440.0,25439.0,0.38270868]
[1693589412500,0.07422437,25440.0,25439.0,0.02]
[1693589412704,0.07422437,25440.0,25437.0,0.02]
[1693589412907,0.07422437,25440.0,25439.0,0.02]
[1693589413112,0.07422437,25440.0,25439.0,0.42708678]
[1693589413328,0.0193,25449.0,25444.0,0.02]
[1693589413531,0.40638678,25449.0,25446.0,0.02]
[1693589413734,0.40638678,25449.0,25440.0,0.3]
[1693589413735,0.01079927,25445.0,25444.0,0.02]
[1693589414176,0.55272076,25445.0,25441.0,0.0760735]
[1693589414396,0.55272076,25445.0,25432.0,0.2886]
[1693589414397,0.38708678,25443.0,25432.0,0.2886]
[1693589414599,0.38708678,25443.0,25434.0,0.02]
[1693589414600,0.15483471,25442.0,25434.0,0.02]
[1693589414800,0.15483471,25442.0,25438.0,0.02]
[1693589415014,0.01079927,25445.0,25440.0,0.02]
[1693589415213,0.01079927,25445.0,25436.0,0.02]
[1693589415489,0.02,25442.0,25433.0,0.02886]
[1693589415691,0.52692149,25441.0,25432.0,0.2686]
[1693589415899,0.61296149,25441.0,25432.0,0.2686]
[1693589416131,0.09048,25440.0,25432.0,0.2686]
[1693589416321,0.15483471,25439.0,25433.0,0.40708678]
[1693589416527,0.1725,25447.0,25436.0,0.02]
[1693589416736,0.1725,25447.0,25439.0,0.02]
[1693589416737,0.53958678,25447.0,25439.0,0.02]
[1693589416946,0.1525,25447.0,25440.0,0.02]
[1693589417357,0.0193,25449.0,25440.0,0.02]
[1693589417559,0.0193,25449.0,25444.0,0.02]
[1693589417757,0.0193,25449.0,25441.0,0.02]
[1693589418023,0.54192149,25448.0,25441.0,0.35987834]
[1693589418332,0.02,25445.0,25436.0,0.03878336]
[1693589418503,0.02,25445.0,25428.0,0.04]
[1693589418504,0.15483471,25444.0,25437.0,0.40708678]
[1693589418713,0.15483471,25444.0,25441.0,0.02]
[1693589418935,0.0193,25449.0,25436.0,0.06]
[1693589418936,0.0193,25449.0,25444.0,0.02]
[1693589419087,0.0193,25449.0,25437.0,0.02]
[1693589419088,0.38708678,25448.0,25437.0,0.02]
[1693589419302,0.15483471,25447.0,25437.0,0.02]
[1693589419500,0.38708678,25446.0,25437.0,0.02]
[1693589419706,0.15483471,25445.0,25437.0,0.02]
[1693589419910,0.15483471,25445.0,25443.0,0.02]
[1693589420281,0.0193,25449.0,25441.0,0.02]
[1693589420452,0.56122149,25449.0,25441.0,0.40708678]
[1693589420651,0.56122149,25449.0,25442.0,0.04070868]
[1693589420864,0.40638678,25449.0,25442.0,0.33570868]
[1693589421033,0.40638678,25449.0,25443.0,0.02]
[1693589421034,0.0193,25449.0,25443.0,0.02]
[1693589421235,0.38708678,25448.0,25442.0,0.33570868]
[1693589421442,0.15483471,25447.0,25442.0,0.03570868]
[1693589421801,0.0193,25449.0,25440.0,0.02]
[1693589422072,0.014374,25449.0,25441.0,0.02]
[1693589422280,0.014374,25449.0,25438.0,0.02]
[1693589422281,0.66464149,25448.0,25438.0,0.02]
[1693589422489,0.54192149,25448.0,25439.0,0.38708678]
[1693589422695,0.15385171,25448.0,25447.0,0.02]
[1693589422918,0.014374,25449.0,25448.0,0.02]
[1693589423152,0.014374,25449.0,25442.0,0.02]
[1693589423153,0.05999999,25447.0,25442.0,0.02]
[1693589423347,0.2148347,25447.0,25442.0,0.173851]
[1693589423551,0.05144899,25447.0,25444.0,0.02]
[1693589423730,0.05144899,25447.0,25445.0,0.02]
[1693589423933,0.05144899,25447.0,25445.0,0.32]
[1693589424134,0.04644899,25447.0,25445.0,0.32]
[1693589424535,0.04610899,25447.0,25445.0,0.32]
[1693589424768,0.04610899,25447.0,25446.0,0.02]
[1693589424975,0.04610899,25447.0,25446.0,0.06060938]
[1693589425604,0.04604099,25447.0,25446.0,0.06060938]
[1693589426120,0.04604099,25447.0,25446.0,0.04060938]
[1693589426310,0.04604099,25447.0,25446.0,0.44769616]
[1693589426440,4.099e-05,25447.0,25446.0,0.88769616]
[1693589426651,0.0194,25462.0,25455.0,0.02]
[1693589426890,0.38208678,25461.0,25455.0,0.02]
[1693589427280,0.0194,25462.0,25459.0,0.02]
[1693589427485,0.0194,25462.0,25456.0,0.3]
[1693589427486,0.03962724,25458.0,25456.0,0.3]
[1693589427696,0.03962724,25458.0,25455.0,0.14154352]
[1693589427697,0.02,25456.0,25455.0,0.14154352]
[1693589427895,0.02,25456.0,25446.0,0.04060938]
[1693589427896,0.02,25453.0,25446.0,0.04060938]
[1693589428111,0.54192149,25452.0,25438.0,0.02]
[1693589428324,0.54192149,25452.0,25443.0,0.1]
[1693589428528,0.09764,25451.0,25443.0,0.1]
[1693589428730,0.54192149,25450.0,25439.0,0.38708678]
[1693589428944,0.15483471,25449.0,25444.0,0.42708678]
[1693589429271,0.00037054,25451.0,25448.0,0.38708678]
[1693589429495,0.03962724,25458.0,25452.0,0.02]
[1693589429656,0.03962724,25458.0,25451.0,0.04]
[1693589429828,0.03962724,25458.0,25451.0,0.3]
[1693589430042,0.03962724,25458.0,25452.0,0.41708678]
[1693589430265,0.03962724,25458.0,25453.0,0.3]
[1693589430467,0.03962724,25458.0,25454.0,0.38708678]
[1693589430702,0.03962724,25458.0,25455.0,0.3]
[1693589430887,0.0194,25462.0,25457.0,0.04]
[1693589431092,0.0194,25462.0,25461.0,0.3084]
[1693589431349,0.0194,25470.0,25463.0,0.02]
[1693589431539,0.02,25462.0,25461.0,0.6084]
[1693589432235,0.01639999,25462.0,25461.0,0.70244]
[1693589432444,0.40348677,25462.0,25461.0,0.09404]
[1693589432650,0.40348677,25462.0,25454.0,0.3084]
[1693589432854,0.40348677,25462.0,25455.0,0.03084]
[1693589432855,0.54192149,25461.0,25455.0,0.03084]
[1693589434094,0.01639999,25462.0,25458.0,0.3084]
[1693589434308,0.01639999,25462.0,25461.0,0.3084]
[1693589434524,0.01639999,25462.0,25461.0,0.6084]
[1693589434744,0.01639999,25462.0,25461.0,0.99548678]
[1693589434950,0.01639999,25462.0,25461.0,1.09503546]
[1693589435164,0.01639999,25462.0,25461.0,0.70794868]
[1693589435580,0.01639999,25462.0,25461.0,1.09503546]
[1693589436219,0.01639999,25462.0,25461.0,1.09003546]
[1693589436220,0.01139999,25462.0,25461.0,1.09003546]
[1693589436434,0.01139999,25462.0,25461.0,1.12881882]
[1693589436636,0.01139999,25462.0,25461.0,0.70294868]
[1693589437044,0.1662347,25462.0,25461.0,0.3034]
[1693589437253,0.1662347,25462.0,25454.0,0.157152]
[1693589437254,0.02,25461.0,25454.0,0.157152]
[1693589437461,0.54192149,25460.0,25451.0,0.3084]
[1693589437666,0.54192149,25460.0,25457.0,0.3084]
[1693589437667,0.15483471,25460.0,25457.0,0.3084]
[1693589437884,0.01139999,25462.0,25458.0,0.03084]
[1693589438103,0.01139999,25462.0,25461.0,0.3084]
[1693589438756,0.01139999,25462.0,25461.0,1.03427014]
[1693589439150,0.0343,25466.0,25461.0,0.64718336]
[1693589439358,0.38708678,25465.0,25461.0,0.3084]
[1693589439567,0.38708678,25465.0,25458.0,0.03084]
[1693589439568,0.38708678,25465.0,25458.0,0.33924]
[1693589439776,0.38708678,25465.0,25453.0,0.03878336]
[1693589439777,0.02,25463.0,25455.0,0.3084]
[1693589439983,0.02,25461.0,25452.0,0.3084]
[1693589440191,0.02,25455.0,25445.0,0.45676339]
[1693589440400,0.02,25455.0,25445.0,0.39318805]
[1693589440401,0.54192149,25454.0,25445.0,0.39318805]
[1693589440605,0.54192149,25454.0,25448.0,0.3084]
[1693589440807,0.15483471,25454.0,25449.0,0.03084]
[1693589441858,0.4097,25463.0,25453.0,0.3084]
[1693589441859,0.02,25462.0,25453.0,0.3084]
[1693589442071,0.38708678,25462.0,25456.0,0.3084]
[1693589442272,0.38708678,25462.0,25457.0,0.03084]
[1693589442486,0.0343,25466.0,25457.0,0.03084]
[1693589442692,0.38708678,25465.0,25462.0,0.3084]
[1693589443238,0.61915229,25461.0,25453.0,0.3084]
[1693589443554,0.54192149,25460.0,25453.0,0.3084]
[1693589443735,0.54192149,25460.0,25454.0,0.03084]
[1693589443945,0.54192149,25460.0,25457.0,0.3084]
[1693589443946,0.15483471,25460.0,25457.0,0.3084]
[1693589444148,0.61915229,25461.0,25457.0,0.3084]
[1693589445052,0.38708678,25460.0,25457.0,0.3084]
[1693589445452,0.38708678,25460.0,25454.0,0.33924]
[1693589445652,0.15483471,25459.0,25455.0,0.033924]
[1693589445861,0.61915229,25461.0,25455.0,0.033924]
[1693589445862,0.61915229,25461.0,25458.0,0.3084]
[1693589446859,0.61915229,25461.0,25459.0,0.3]
[1693589448277,0.38708678,25460.0,25457.0,0.157128]
[1693589448489,0.38708678,25460.0,25447.0,0.1]
[1693589448490,0.15483471,25459.0,25452.0,0.3084]
[1693589448694,0.15483471,25458.0,25453.0,0.03084]
[1693589448904,0.0343,25466.0,25460.0,0.04]
[1693589449138,0.0343,25466.0,25465.0,0.3084]
[1693589449139,0.02273643,25466.0,25465.0,0.3084]
[1693589449338,0.02273643,25466.0,25454.0,0.73544227]
[1693589449339,0.01773643,25466.0,25459.0,0.13949293]
[1693589449545,0.01773643,25466.0,25459.0,0.3084]
[1693589449752,0.01773643,25466.0,25462.0,0.3084]
[1693589449753,0.55965792,25466.0,25462.0,0.3084]
[1693589449973,0.40482321,25466.0,25462.0,0.3084]
[1693589450170,0.01773643,25466.0,25462.0,0.3084]
[1693589450589,0.01773643,25466.0,25465.0,0.3084]
[1693589450793,0.40482321,25466.0,25460.0,0.03084]
[1693589450995,0.54192149,25465.0,25459.0,0.3084]
[1693589451604,0.15483471,25465.0,25462.0,0.3084]
[1693589451833,0.01773643,25466.0,25462.0,0.3084]
[1693589452373,0.38708678,25465.0,25459.0,0.3084]
[1693589452620,0.15483471,25464.0,25459.0,0.3084]
[1693589452827,0.01773643,25466.0,25460.0,0.03084]
[1693589453032,0.01773643,25466.0,25462.0,0.3084]
[1693589453211,0.38708678,25465.0,25462.0,0.3084]
[1693589453427,0.38708678,25464.0,25462.0,0.3084]
[1693589453614,0.36208678,25464.0,25462.0,0.3084]
[1693589453824,0.36208678,25464.0,25460.0,0.33084]
[1693589454025,0.51692149,25464.0,25460.0,0.03084]
[1693589454230,0.36208678,25464.0,25460.0,0.03084]
[1693589454440,0.01773643,25466.0,25460.0,0.03084]
[1693589454640,0.01773643,25466.0,25462.0,0.3084]
[1693589454641,0.40482321,25466.0,25462.0,0.3084]
[1693589454841,0.40482321,25466.0,25463.0,0.03084]
[1693589455241,0.01773643,25466.0,25463.0,0.03084]
[1693589455653,0.01773643,25466.0,25465.0,0.3084]
[1693589455972,0.01773643,25466.0,25465.0,0.6084]
[1693589456593,0.01773643,25466.0,25465.0,0.3084]
[1693589456792,0.01773643,25466.0,25465.0,0.342324]
[1693589457644,0.01773643,25466.0,25465.0,0.642324]
[1693589457840,0.01773643,25466.0,25465.0,1.02941078]
[1693589458245,0.01773643,25466.0,25465.0,0.642324]
[1693589459618,0.01773643,25466.0,25465.0,1.02941078]
[1693589460465,0.0194,25470.0,25465.0,1.06941078]
[1693589460677,0.0194,25470.0,25469.0,0.3084]
[1693589460926,0.0194,25470.0,25469.0,0.6084]
[1693589461598,0.002535,25470.0,25469.0,0.6084]
[1693589461831,0.54289949,25470.0,25465.0,0.03176738]
[1693589462018,0.54289949,25470.0,25457.0,0.3232]
[1693589462019,0.54192149,25469.0,25457.0,0.5516]
[1693589462224,0.54192149,25469.0,25460.0,0.3084]
[1693589462371,0.54192149,25469.0,25463.0,0.3084]
[1693589462549,0.000978,25470.0,25467.0,0.3084]
[1693589463854,0.000978,25470.0,25468.0,0.3]
[1693589464526,0.000978,25470.0,25469.0,0.02]
[1693589464725,0.000978,25470.0,25469.0,0.11548868]
[1693589464928,0.000978,25470.0,25469.0,0.41548868]
[1693589466430,0.000978,25470.0,25469.0,0.84135882]
[1693589466632,0.00022882,25474.0,25470.0,0.36718336]
[1693589467000,0.00022882,25474.0,25473.0,0.3084]
[1693589467210,0.00022882,25474.0,25473.0,0.70794868]
[1693589468030,0.01462882,25475.0,25473.0,0.70794868]
[1693589468198,0.01462882,25475.0,25474.0,0.3]
[1693589468398,0.01367388,25477.0,25474.0,0.3]
[1693589468616,0.01367388,25477.0,25476.0,0.3084]
[1693589468980,0.01367388,25477.0,25476.0,0.36924]
[1693589469597,0.01367388,25477.0,25476.0,0.66924]
[1693589470385,0.21667388,25484.0,25476.0,0.66924]
[1693589470585,0.38708678,25483.0,25477.0,0.3]
[1693589471635,0.38708678,25483.0,25476.0,0.36924]
[1693589471636,0.15483471,25482.0,25476.0,0.36924]
[1693589471843,0.38708678,25481.0,25477.0,0.036924]
[1693589472258,0.00227388,25484.0,25477.0,0.036924]
[1693589472504,0.38708678,25483.0,25477.0,0.336924]
[1693589473065,0.54192149,25483.0,25477.0,0.336924]
[1693589473467,0.38708678,25483.0,25479.0,0.3084]
[1693589473666,0.38708678,25483.0,25480.0,0.03084]
[1693589474268,0.00227388,25484.0,25480.0,0.41792678]
[1693589474512,0.00227388,25484.0,25482.0,0.3084]
[1693589474852,0.00227388,25484.0,25483.0,0.20124699]
[1693589475420,0.38936066,25484.0,25483.0,0.20124699]
[1693589475640,0.00227388,25484.0,25481.0,0.3]
[1693589475841,0.00227388,25484.0,25483.0,0.69548678]
[1693589476040,0.00227388,25484.0,25483.0,0.99548678]
[1693589476287,0.00227388,25484.0,25483.0,1.0919668]
[1693589476500,0.0192,25487.0,25483.0,1.22479787]
[1693589476727,0.0192,25487.0,25486.0,0.3084]
[1693589476961,0.0192,25487.0,25484.0,0.95824943]
[1693589476962,0.56112149,25487.0,25484.0,0.20329398]
[1693589477168,0.56112149,25487.0,25476.0,0.3084]
[1693589477169,0.3084,25484.0,25476.0,0.3084]
[1693589477382,0.40708678,25481.0,25475.0,0.2466]
[1693589477628,0.40708678,25481.0,25473.0,0.2658]
[1693589477629,0.25483471,25480.0,25473.0,0.2658]
[1693589477836,0.38708678,25479.0,25477.0,0.2466]
[1693589478040,0.06624,25482.0,25477.0,0.2466]
[1693589478249,0.08,25486.0,25481.0,0.2466]
[1693589478449,0.38708678,25485.0,25481.0,0.2466]
[1693589479128,0.38708678,25483.0,25481.0,0.2466]
[1693589479331,0.38708678,25483.0,25482.0,0.02466]
[1693589479669,0.38708678,25483.0,25479.0,0.2466]
[1693589479876,0.38708678,25482.0,25477.0,0.02]
[1693589480071,0.54192149,25482.0,25477.0,0.02]
[1693589480288,0.04,25480.0,25476.0,0.2466]
[1693589480503,0.14982,25481.0,25470.0,0.0310237]
[1693589480504,0.04,25476.0,25470.0,0.0001]
[1693589480721,0.02,25472.0,25470.0,0.0001]
[1693589480928,0.12354,25475.0,25470.0,0.0001]
[1693589481135,0.06,25479.0,25474.0,0.2466]
[1693589481346,0.02,25483.0,25477.0,0.2466]
[1693589481556,0.02,25483.0,25472.0,0.2466]
[1693589481557,0.38708678,25482.0,25479.0,0.2466]
[1693589481753,0.38708678,25482.0,25480.0,0.0001]
[1693589481974,0.0192,25487.0,25481.0,0.2466]
[1693589482179,0.38708678,25486.0,25482.0,0.02467]
[1693589482377,0.02,25485.0,25481.0,0.2466]
[1693589482583,0.0192,25487.0,25484.0,0.02]
[1693589482796,0.0192,25487.0,25486.0,0.2466]
[1693589482995,0.0192,25487.0,25481.0,0.28538336]
[1693589482996,0.42628678,25487.0,25481.0,0.28538336]
[1693589483199,0.38708678,25486.0,25481.0,0.28538336]
[1693589483421,0.38708678,25486.0,25481.0,0.27714834]
[1693589483626,0.48484678,25486.0,25481.0,0.2466]
[1693589483829,0.48376678,25486.0,25481.0,0.2466]
[1693589484051,0.47650678,25486.0,25481.0,0.2466]
[1693589484258,0.47410678,25486.0,25481.0,0.2466]
[1693589484465,0.47464678,25486.0,25481.0,0.2466]
[1693589484667,0.40708678,25486.0,25481.0,0.2466]
[1693589484912,0.54413578,25486.0,25481.0,0.29327]
[1693589485130,0.0192,25487.0,25485.0,0.2466]
[1693589485286,0.0192,25487.0,25485.0,0.2666]
[1693589485490,0.40628678,25487.0,25486.0,0.02]
[1693589485688,0.40628678,25487.0,25486.0,0.02666]
[1693589486028,0.40628678,25487.0,25483.0,0.2466]
[1693589486279,0.40628678,25487.0,25485.0,0.02]
[1693589486430,0.40628678,25487.0,25481.0,0.02667]
[1693589486431,0.0192,25487.0,25486.0,0.2466]
[1693589486798,0.0192,25487.0,25483.0,0.2466]
[1693589486799,0.40628678,25487.0,25483.0,0.2466]
[1693589486928,0.40628678,25487.0,25482.0,0.02]
[1693589487328,0.38708678,25486.0,25482.0,0.02]
[1693589488497,0.38708678,25486.0,25485.0,0.02]
[1693589489140,0.38708678,25486.0,25483.0,0.02]
[1693589489345,0.38708678,25486.0,25480.0,0.0001]
[1693589489547,0.54192149,25486.0,25482.0,0.02]
[1693589489673,0.38708678,25486.0,25482.0,0.02]
[1693589489876,0.38708678,25486.0,25482.0,0.04667]
[1693589490096,0.0192,25487.0,25482.0,0.04667]
[1693589490295,0.0192,25487.0,25485.0,0.02]
[1693589490722,0.0192,25487.0,25482.0,0.02667]
[1693589490723,0.0192,25487.0,25486.0,0.2666]
[1693589491151,0.0192,25487.0,25486.0,0.5666]
[1693589491451,0.0192,25487.0,25486.0,0.62326]
[1693589492048,0.0192,25487.0,25486.0,0.9921395]
[1693589492260,0.0192,25487.0,25486.0,0.60505272]
[1693589492689,0.0192,25487.0,25486.0,0.70549587]
[1693589492845,0.0192,25487.0,25486.0,0.60505272]
[1693589493476,0.0192,25487.0,25486.0,0.62425272]
[1693589494265,0.0192,25487.0,25486.0,0.70549587]
[1693589494465,0.0192,25487.0,25486.0,0.40549587]
[1693589494717,0.0192,25487.0,25486.0,0.30505272]
[1693589494847,0.0192,25487.0,25486.0,0.24839272]
[1693589495722,0.0192,25487.0,25486.0,0.00179272]
[1693589496157,0.56112149,25487.0,25483.0,0.00179272]
[1693589496376,0.56112149,25487.0,25482.0,0.11320636]
[1693589496377,0.54192149,25486.0,25482.0,0.00179272]
[1693589496502,0.54192149,25486.0,25480.0,0.0001]
[1693589496708,0.54192149,25486.0,25483.0,0.00179272]
[1693589496907,0.38708678,25486.0,25483.0,0.00179272]
[1693589497106,0.38708678,25486.0,25480.0,0.0001]
[1693589497107,0.02,25483.0,25480.0,0.0001]
[1693589497309,0.85678678,25481.0,25480.0,0.0001]
[1693589497583,1.01162149,25481.0,25480.0,0.0001]
[1693589497782,0.92332678,25481.0,25480.0,0.0001]
[1693589498010,0.85678678,25481.0,25480.0,0.0001]
[1693589498140,0.40708678,25481.0,25480.0,0.0001]
[1693589498322,0.38708678,25481.0,25480.0,0.0001]
[1693589498526,0.38708678,25481.0,25480.0,0.00189272]
[1693589498945,0.02,25485.0,25481.0,0.00179272]
[1693589499139,0.38708678,25484.0,25481.0,0.00179272]
[1693589499344,0.157046,25486.0,25483.0,0.00179272]
[1693589499546,0.0192,25487.0,25485.0,0.00179272]
[1693589499949,0.38708678,25486.0,25485.0,0.00179272]
[1693589500152,0.38708678,25486.0,25484.0,0.00179272]
[1693589500869,0.81678678,25485.0,25481.0,0.00179272]
[1693589501075,0.4497,25481.0,25480.0,0.0001]
[1693589501270,1.01162149,25481.0,25480.0,0.0001]
[1693589501473,1.01162149,25481.0,25470.0,0.02677]
[1693589501474,0.02,25473.0,25470.0,0.02677]
[1693589501795,0.83678678,25471.0,25470.0,0.0001]
[1693589501951,0.83678678,25471.0,25460.0,0.0001]
[1693589501952,0.02,25464.0,25460.0,0.0001]
[1693589502153,0.54192149,25463.0,25460.0,0.00189272]
[1693589502581,0.54192149,25463.0,25461.0,0.00179272]
[1693589503004,0.54192149,25463.0,25460.0,0.0001]
[1693589503005,0.02,25468.0,25464.0,0.00179272]
[1693589503213,0.38708678,25467.0,25464.0,0.00179272]
[1693589503638,0.02,25472.0,25466.0,0.00179272]
[1693589503834,0.02,25472.0,25462.0,0.2466]
[1693589503835,0.38708678,25471.0,25468.0,0.00179272]
[1693589504411,0.38708678,25471.0,25463.0,0.3]
[1693589504412,0.07986,25476.0,25474.0,0.00179272]
[1693589504720,0.40708678,25475.0,25471.0,0.00179272]
[1693589504887,0.40708678,25475.0,25467.0,0.00179272]
[1693589504888,0.38708678,25472.0,25467.0,0.00179272]
[1693589505122,0.38708678,25472.0,25464.0,0.00179272]
[1693589505123,0.38708678,25468.0,25464.0,0.00179272]
[1693589505329,0.38708678,25468.0,25465.0,0.00179272]
[1693589505330,0.15483471,25467.0,25465.0,0.00179272]
[1693589505529,0.02,25469.0,25465.0,0.00179272]
[1693589505530,0.38708678,25466.0,25465.0,0.00179272]
[1693589505958,0.02,25472.0,25465.0,0.00179272]
[1693589506165,0.38708678,25471.0,25468.0,0.00179272]
[1693589506830,0.02,25470.0,25467.0,0.00179272]
[1693589507039,0.38708678,25469.0,25465.0,0.00179272]
[1693589507268,1.06108149,25468.0,25460.0,0.0001]
[1693589507487,1.06108149,25468.0,25462.0,0.00179272]
[1693589507488,1.04890149,25468.0,25462.0,0.00179272]
[1693589507696,0.02,25466.0,25462.0,0.00179272]
[1693589507894,0.79678678,25464.0,25460.0,0.0001]
[1693589508097,0.97162149,25463.0,25460.0,0.0001]
[1693589508340,1.04398149,25463.0,25460.0,0.0001]
[1693589508545,0.97162149,25463.0,25460.0,0.0001]
[1693589508897,0.38708678,25462.0,25460.0,0.0001]
[1693589509630,0.60192149,25461.0,25460.0,0.0001]
[1693589509837,1.17438877,25461.0,25460.0,0.0001]
[1693589510016,1.02309406,25461.0,25460.0,0.0001]
[1693589510255,1.43903406,25461.0,25460.0,0.0001]
[1693589510460,1.44443406,25461.0,25460.0,0.0001]
[1693589510709,1.44095406,25461.0,25460.0,0.0001]
[1693589510916,0.4497,25457.0,25456.0,0.019392]
[1693589511115,1.08338678,25457.0,25456.0,0.019392]
[1693589511811,1.18538678,25457.0,25456.0,0.019392]
[1693589512013,0.52790728,25455.0,25451.0,0.019392]
[1693589512213,0.4497,25452.0,25451.0,0.019392]
[1693589512413,1.23822149,25452.0,25451.0,0.019392]
[1693589512622,1.08338678,25452.0,25451.0,0.019392]
[1693589512769,0.83678678,25452.0,25451.0,0.019392]
[1693589513198,0.83678678,25452.0,25443.0,0.019392]
[1693589513199,0.02,25447.0,25443.0,0.019392]
[1693589513410,0.38708678,25444.0,25443.0,0.02118472]
[1693589513755,0.38708678,25444.0,25442.0,0.019392]
[1693589513756,0.54192149,25444.0,25442.0,0.019392]
[1693589513982,0.38708678,25444.0,25443.0,0.00179272]
[1693589514187,0.04,25443.0,25442.0,0.019392]
[1693589514616,0.52146,25443.0,25442.0,0.019392]
[1693589514816,0.07692,25443.0,25442.0,0.019392]
[1693589515020,0.38708678,25444.0,25442.0,0.019392]
[1693589515226,0.38708678,25444.0,25443.0,0.00179272]
[1693589515431,0.04,25450.0,25446.0,0.00179272]
[1693589515635,0.38708678,25449.0,25446.0,0.00179272]
[1693589515840,0.02,25448.0,25446.0,0.00179272]
[1693589516042,0.38708678,25447.0,25446.0,0.00179272]
[1693589516659,0.02,25451.0,25446.0,0.00179272]
[1693589516860,0.38708678,25450.0,25446.0,0.00179272]
[1693589517283,0.233661,25455.0,25453.0,0.00179272]
[1693589517484,0.02,25459.0,25454.0,0.00179272]
[1693589517692,0.02,25464.0,25462.0,0.00179272]
[1693589517894,0.38708678,25463.0,25462.0,0.00179272]
[1693589520089,0.79678678,25463.0,25461.0,0.00179272]
[1693589520326,0.79678678,25463.0,25456.0,0.2572]
[1693589520327,0.02,25458.0,25456.0,0.25899272]
[1693589520534,0.54192149,25457.0,25456.0,0.25899272]
[1693589520940,0.38708678,25457.0,25456.0,0.00179272]
[1693589521145,0.54192149,25457.0,25455.0,0.00179272]
[1693589521362,0.95162149,25456.0,25453.0,0.00179272]
[1693589521602,0.95162149,25456.0,25450.0,0.00179272]
[1693589521603,0.79678678,25454.0,25450.0,0.00179272]
[1693589521810,0.38708678,25451.0,25449.0,0.00179272]
[1693589522248,0.54192149,25451.0,25450.0,0.00179272]
[1693589522454,0.38708678,25451.0,25450.0,0.00179272]
[1693589523103,0.02,25448.0,25445.0,0.00179272]
[1693589523315,0.38708678,25446.0,25445.0,0.00179272]
[1693589523520,0.54192149,25446.0,25445.0,0.00179272]
[1693589523721,0.38708678,25446.0,25445.0,0.00179272]
[1693589524130,0.40708678,25446.0,25444.0,0.00179272]
[1693589524336,0.79678678,25445.0,25443.0,0.00179272]
[1693589524549,0.02,25450.0,25443.0,0.00179272]
[1693589524550,0.02,25458.0,25450.0,0.00179272]
[1693589524782,0.02,25459.0,25442.0,0.099392]
[1693589524783,0.40708678,25456.0,25451.0,0.00179272]
[1693589525001,0.40708678,25456.0,25447.0,0.08]
[1693589525002,0.38708678,25456.0,25455.0,0.00179272]
[1693589525673,0.38708678,25456.0,25452.0,0.00179272]
[1693589525887,0.38708678,25456.0,25447.0,0.3]
[1693589525888,0.79678678,25455.0,25454.0,0.00179272]
[1693589526500,0.79678678,25455.0,25453.0,0.00179272]
[1693589526733,0.02,25453.0,25450.0,0.00179272]
[1693589526931,0.04,25451.0,25449.0,0.00179272]
[1693589527134,0.38708678,25450.0,25449.0,0.00179272]
[1693589527338,0.51274,25453.0,25452.0,0.00179272]
[1693589527339,0.081,25453.0,25452.0,0.00179272]
[1693589527542,0.02,25458.0,25452.0,0.00179272]
[1693589527747,0.38708678,25458.0,25456.0,0.00179272]
[1693589527979,0.38708678,25458.0,25451.0,0.02]
[1693589527980,0.02,25452.0,25451.0,0.00179272]
[1693589528185,0.56192149,25452.0,25451.0,0.00179272]
[1693589528398,0.38708678,25452.0,25451.0,0.00179272]
[1693589528600,0.40708678,25452.0,25451.0,0.00179272]
[1693589529533,0.02,25451.0,25450.0,0.00179272]
[1693589529742,0.02,25449.0,25447.0,0.00179272]
[1693589529947,0.54192149,25448.0,25445.0,0.00179272]
[1693589530083,0.15483471,25447.0,25445.0,0.00179272]
[1693589530280,0.15483471,25447.0,25446.0,0.00179272]
[1693589530486,0.38708678,25447.0,25446.0,0.00179272]
[1693589531288,0.40708678,25447.0,25446.0,0.00179272]
[1693589531463,0.12128,25452.0,25442.0,0.019392]
[1693589531464,0.02,25452.0,25444.0,0.2466]
[1693589531663,0.38708678,25451.0,25450.0,0.00179272]
[1693589531976,0.02,25456.0,25452.0,0.00179272]
[1693589531977,0.0663,25456.0,25452.0,0.00179272]
[1693589532186,0.02,25453.0,25452.0,0.00179272]
[1693589532388,0.02,25452.0,25451.0,0.00179272]